fUSD/lending_fUSD_20240213
["ID","MTS","AMOUNT","RATE_DAILY","PERIOD"]
[313951042,1707850237743,-705.59492067,0.00022809,2]
[313951043,1707850237772,-149.53655617,0.00022809,2]
[313951044,1707850237784,-3637.98810384,0.00022809,2]
[313951053,1707850240055,-1032.09292142,0.00022809,2]
[313951054,1707850240111,-19253.23923627,0.00022809,2]
[313951055,1707850240173,-1467.29741007,0.00022809,2]
[313951056,1707850240186,-143188.50689499,0.00022809,2]
[313951057,1707850240992,-1540.36184895,0.00022809,2]
[313951058,1707850241004,-1156.2,0.00022809,2]
[313951075,1707850242677,-9415.1450855,0.00022809,2]
[313951076,1707850242690,-1850.0366337,0.00022809,2]
[313951077,1707850242701,-343.05,0.00022809,2]
[313951078,1707850243012,-884.29031213,0.00022809,2]
[313951079,1707850243027,-1037.45483493,0.00022809,2]
[313951080,1707850243256,-768.46141345,0.00022809,2]
[313951081,1707850243281,-386596.077343,0.00022809,2]
[313951082,1707850243290,-150.0,0.0002281,2]
[313951083,1707850243299,-800.0,0.00022816,2]
[313951084,1707850243309,-150.0,0.00022817,2]
[313951085,1707850243318,-150.0,0.00022818,2]
[313951086,1707850243328,-258.56,0.00022822,2]
[313951087,1707850243337,-151.69,0.00022825,2]
[313951088,1707850243346,-150.0,0.00022833,2]
[313951089,1707850243355,-231.63800019,0.00022835,2]
[313951090,1707850243365,-150.0,0.00022836,2]
[313951091,1707850243374,-261.48171126,0.00022841,2]
[313951092,1707850243383,-634.95,0.00022842,2]
[313951094,1707850243392,-150.0,0.00022849,2]
[313951095,1707850243402,-1500.0,0.0002285,2]
[313951096,1707850243411,-150.0,0.00022855,2]
[313951097,1707850243420,-1500.0,0.00022876,2]
[313951098,1707850243430,-1500.0,0.00022877,2]
[313951099,1707850243439,-500.0,0.00022885,2]
[313951100,1707850243449,-150.0,0.00022886,2]
[313951102,1707850243458,-150.0,0.00022887,2]
[313951103,1707850243467,-150.0,0.00022889,2]
[313951104,1707850243477,-343.89,0.0002289,2]
[313951105,1707850243486,-517.4136,0.00022894,2]
[313951106,1707850243495,-509.3089,0.00022894,2]
[313951107,1707850243504,-736.08,0.00022896,2]
[313951108,1707850243514,-150.0,0.00022897,2]
[313951109,1707850243523,-200.01430657,0.000229,2]
[313951110,1707850243532,-209.45400424,0.000229,4]
[313951111,1707850243541,-261.48171126,0.000229,2]
[313951112,1707850243551,-241.74301573,0.000229,2]
[313951113,1707850243561,-427.43655147,0.000229,2]
[313951114,1707850243570,-150.0,0.00022904,2]
[313951115,1707850243579,-150.0,0.00022906,2]
[313951116,1707850243588,-150.0,0.00022908,2]
[313951117,1707850243597,-150.0,0.00022909,2]
[313951118,1707850243607,-150.0,0.00022925,2]
[313951119,1707850243616,-150.0,0.00022928,2]
[313951120,1707850243625,-1500.0,0.00022929,2]
[313951121,1707850243634,-968.23077617,0.00022934,2]
[313951122,1707850243643,-150.0,0.00022939,2]
[313951123,1707850243651,-152.15491724,0.00022947,2]
[313951124,1707850243660,-150.0,0.00022949,2]
[313951125,1707850243669,-408.82,0.00022959,2]
[313951126,1707850243678,-150.0,0.00022961,2]
[313951127,1707850243687,-150.0,0.00022968,2]
[313951128,1707850243697,-150.0,0.00022972,2]
[313951129,1707850243706,-150.0,0.00022978,2]
[313951130,1707850243716,-150.0,0.0002298,2]
[313951131,1707850243725,-11669.0,0.00022986,2]
[313951132,1707850243734,-8752.42762421,0.00022994,2]
[313951133,1707850243743,-503.3410751,0.00022995,2]
[313951134,1707850243752,-344.21063477,0.00022995,2]
[313951135,1707850243764,-196.71456252,0.00022996,2]
[313951136,1707850243774,-284.25647056,0.00022996,2]
[313951137,1707850243783,-1226.0057,0.00022996,2]
[313951138,1707850243792,-162.22964649,0.00022996,2]
[313951139,1707850243802,-3289.56533994,0.00022997,2]
[313951140,1707850243811,-157.32438988,0.00022997,2]
[313951141,1707850243820,-431.34757158,0.00022997,2]
[313951142,1707850243830,-1249.53942068,0.00022997,2]
[313951143,1707850243840,-249.40429549,0.00022997,2]
[313951144,1707850243849,-287.11624451,0.00022997,2]
[313951145,1707850243858,-1044.0807573,0.00022997,2]
[313951146,1707850243867,-3631.13673471,0.00022997,2]
[313951147,1707850243876,-155.44686257,0.00022997,2]
[313951148,1707850243885,-201.39669076,0.00022997,2]
[313951149,1707850243894,-157.38264733,0.00022997,2]
[313951150,1707850243903,-421.42736857,0.00022997,2]
[313951151,1707850243912,-197.21636051,0.00022997,2]
[313951152,1707850243921,-155.0,0.00022998,2]
[313951153,1707850243930,-294.48445557,0.00022998,2]
[313951154,1707850243940,-10552.37836956,0.00022998,2]
[313951155,1707850243949,-312.47792313,0.00022998,2]
[313951156,1707850243958,-526.74284305,0.00022998,2]
[313951157,1707850243968,-162.48956614,0.00022998,2]
[313951158,1707850243977,-212.47602907,0.00022998,2]
[313951159,1707850243986,-338.5746,0.00022998,2]
[313951160,1707850243995,-363.52229964,0.00022998,2]
[313951161,1707850244004,-5364.76560524,0.00022998,2]
[313951162,1707850244013,-251.32016081,0.00022998,2]
[313951163,1707850244022,-267.08510665,0.00022998,2]
[313951164,1707850244031,-173.07642699,0.00022998,2]
[313951165,1707850244040,-156.72371405,0.00022998,2]
[313951166,1707850244049,-396.46303361,0.00022998,2]
[313951167,1707850244058,-155.0,0.00022998,2]
[313951168,1707850244067,-233.42707403,0.00022998,2]
[313951169,1707850244076,-265.83954825,0.00022998,2]
[313951170,1707850244085,-192.82758481,0.00022998,2]
[313951171,1707850244094,-156.56440995,0.00022998,2]
[313951172,1707850244103,-155.0,0.00022998,2]
[313951173,1707850244112,-155.59477149,0.00022998,2]
[313951174,1707850244122,-4747.19255402,0.00022998,2]
[313951175,1707850244131,-155.0,0.00022998,2]
[313951176,1707850244140,-155.0,0.00022998,2]
[313951177,1707850244149,-203.90995119,0.00022998,2]
[313951178,1707850244159,-91121.64441968,0.00022998,2]
[313951179,1707850244169,-2151.23079667,0.00022999,2]
[313951180,1707850244178,-177.3874531,0.00022999,2]
[313951181,1707850244187,-413.27466345,0.00022999,2]
[313951182,1707850244196,-155.0,0.00022999,2]
[313951183,1707850244205,-157.26783072,0.00022999,2]
[313951184,1707850244215,-163.68052239,0.00022999,2]
[313951185,1707850244224,-2312.60059357,0.00022999,2]
[313951186,1707850244233,-769.74110011,0.00023,3]
[313951187,1707850244242,-4621141.433163,0.00023,2]
[313951194,1707850245735,-729.32,0.00022809,2]
[313951195,1707850245745,-1009.46696956,0.00023,2]
[313951198,1707850245828,-152424.71169586,0.00023,2]
[313951202,1707850245970,-2464.6695,0.00023,2]
[313951203,1707850246051,-12948.94992675,0.00023,2]
[313951204,1707850246063,-1146.94746516,0.00023,2]
[313951205,1707850246080,-287.0,0.00023,2]
[313951206,1707850251292,500.0,0.00022,2]
[313951207,1707850253266,2031.56578531,0.00022124,2]
[313951208,1707850254619,515.16,0.00022,2]
[313951209,1707850255226,296.11088142,0.00020698,2]
[313951210,1707850261964,194.23444843,0.00020698,2]
[313951211,1707850271240,500.0,0.000228,8]
[313951212,1707850273527,1100.0,0.000229,8]
[313951213,1707850275420,1700.0,0.000249,9]
[313951214,1707850286213,638.78,0.00020729,2]
[313951215,1707850294991,580.96739761,0.0002,2]
[313951220,1707850341534,856.49,0.00022134,2]
[313951221,1707850347541,165.84,0.000223,2]
[313951222,1707850374714,150.0,0.00022,2]
[313951223,1707850386294,200.0,0.00021976,2]
[313951224,1707850400397,-364.51090599,0.00022478,2]
[313951225,1707850400420,-155.0,0.00022479,2]
[313951226,1707850400455,-514.71727457,0.00022479,2]
[313951227,1707850400480,-421.67549177,0.0002248,2]
[313951228,1707850400503,-155.0,0.00022481,2]
[313951229,1707850400526,-248.4680893,0.00022482,2]
[313951230,1707850400549,-4545.09179447,0.00022482,2]
[313951231,1707850400571,-494.8193932,0.00022483,2]
[313951232,1707850400593,-19102.0096647,0.00022485,2]
[313951233,1707850400616,-766.47037559,0.00022486,2]
[313951234,1707850400639,-566.8494334,0.000225,2]
[313951235,1707850400662,-150.0,0.00022548,2]
[313951236,1707850400693,-1383.8796848,0.00022582,2]
[313951237,1707850400715,-165.38,0.00022648,2]
[313951238,1707850400736,-3410.4424,0.00022663,2]
[313951239,1707850400758,-155.49865681,0.00022694,2]
[313951240,1707850400779,-254.53226998,0.000228,2]
[313951241,1707850400803,-2929.33280704,0.00022808,2]
[313951242,1707850400825,-800.0,0.00022816,2]
[313951243,1707850400849,-165.84,0.00022881,2]
[313951244,1707850400872,-368.2443,0.00022899,2]
[313951245,1707850400895,-209.45400424,0.00022914,4]
[313951246,1707850400918,-638.78,0.00022993,2]
[313951247,1707850400940,-150.0,0.00022996,2]
[313951248,1707850400962,-200.0,0.00022996,2]
[313951249,1707850400991,-155.73237488,0.00022997,2]
[313951250,1707850401014,-7925.76368049,0.00022997,2]
[313951251,1707850401036,-155.0,0.00022997,2]
[313951252,1707850401063,-155.0,0.00022997,2]
[313951253,1707850401085,-226.59092982,0.00022997,2]
[313951254,1707850401107,-1798.28,0.00022997,2]
[313951255,1707850401131,-345.00799253,0.00022997,2]
[313951256,1707850401155,-4560.00907521,0.00022997,2]
[313951257,1707850401177,-155.0,0.00022998,2]
[313951258,1707850401200,-155.27902911,0.00022998,2]
[313951259,1707850401223,-728.99082072,0.00022998,2]
[313951260,1707850401244,-340.62798124,0.00022998,2]
[313951261,1707850401266,-168.01714355,0.00022998,2]
[313951262,1707850401288,-1265.38591735,0.00022998,2]
[313951263,1707850401312,-480.39027868,0.00022998,2]
[313951264,1707850401333,-254.39647983,0.00022998,2]
[313951265,1707850401355,-327.06137686,0.00022998,2]
[313951266,1707850401378,-392.80368528,0.00022998,2]
[313951267,1707850401399,-1209.70542781,0.00022998,2]
[313951268,1707850401420,-642.82827154,0.00022998,2]
[313951269,1707850401443,-462.13298924,0.00022998,2]
[313951270,1707850443179,150.0,0.00022,2]
[313951271,1707850448581,1110.87739662,0.0002,2]
[313951272,1707850473488,7237.7148,0.0002239,2]
[313951273,1707850492882,610.57725012,0.0002239,2]
[313951274,1707850511635,150.0,0.00022,2]
[313951275,1707850515555,680.0,0.000225,7]
[313951276,1707850547025,408.76,0.00022021,2]
[313951277,1707850558375,606.0,0.00023,15]
[313951279,1707850575353,-206.0,0.00022448,2]
[313951280,1707850575373,-250.0,0.0002252,2]
[313951281,1707850579186,144.0,0.00021899,2]
[313951282,1707850579207,156.0,0.00021899,2]
[313951283,1707850589967,2000.0,0.00021996,2]
[313951284,1707850632432,250.0,0.00021918,2]
[313951285,1707850654091,296.53829154,0.00021899,2]
[313951286,1707850724439,1279.6,0.00021707,2]
[313951287,1707850750603,23900.0,0.00021697,2]
[313951288,1707850782593,585.71,0.00019779,2]
[313951289,1707850782800,585.71,0.00022043,2]
[313951290,1707850862352,177.27,0.00022,2]
[313951291,1707850864755,165.84,0.00021909,2]
[313951292,1707850871341,507.76294868,0.00022,2]
[313951293,1707850877676,200.0,0.00021736,2]
[313951294,1707850905251,200.0,0.00021732,2]
[313951295,1707850908417,343.12,0.00021732,2]
[313951296,1707850924786,129.88342672,0.00021732,2]
[313951297,1707850924809,673.00342672,0.00021732,2]
[313951298,1707850924832,197.11314656,0.00021732,2]
[313951299,1707850940088,250.0,0.00021658,2]
[313951300,1707850985392,176.8,0.00016712,2]
[313951301,1707851078276,49.09028016,0.00021658,2]
[313951302,1707851078303,115.87971984,0.00021658,2]
[313951303,1707851094799,243.74,0.00021658,2]
[313951304,1707851114000,250.0,0.00021918,2]
[313951305,1707851125759,63.38370688,0.00022,2]
[313951306,1707851125785,186.61629312,0.00022,2]
[313951307,1707851145656,230.54,0.00021651,2]
[313951308,1707851146835,-155.0,0.00022402,2]
[313951309,1707851146855,-165.12,0.00022403,2]
[313951310,1707851146875,-3046.55117717,0.00022471,2]
[313951311,1707851146896,-4130.2348,0.00022472,2]
[313951312,1707851146917,-154.09539154,0.00022473,2]
[313951313,1707851146937,-150.0,0.00022484,2]
[313951314,1707851146959,-2976.2579,0.00022485,2]
[313951315,1707851174713,222.44,0.00021691,2]
[313951316,1707851175419,1110.97,0.00021691,2]
[313951317,1707851187231,2000.0,0.0002168,2]
[313951318,1707851187339,296.11088142,0.0002031,2]
[313951319,1707851189273,2031.56578531,0.0002189,2]
[313951320,1707851190950,610.57725012,0.00022,2]
[313951321,1707851192703,150.0,0.00022,2]
[313951322,1707851194287,206.0,0.00022236,2]
[313951323,1707851194877,2977.4533,0.00022371,2]
[313951324,1707851196159,194.23444843,0.0002031,2]
[313951325,1707851196643,-154.09539144,0.00022504,2]
[313951326,1707851196665,-735.92,0.00022531,2]
[313951327,1707851196685,-154.09539144,0.00022534,2]
[313951328,1707851196705,-730.36,0.00022537,2]
[313951329,1707851196726,-177.27,0.00022548,2]
[313951330,1707851196746,-313.73,0.00022548,2]
[313951331,1707851196767,-150.0,0.00022548,2]
[313951332,1707851196788,-729.74,0.00022556,2]
[313951333,1707851196809,-154.09539144,0.00022565,2]
[313951334,1707851196830,-734.87,0.00022567,2]
[313951335,1707851196850,-150.99,0.00022567,2]
[313951336,1707851196870,-150.0,0.00022568,2]
[313951337,1707851196890,-2874.85928017,0.00022568,2]
[313951338,1707851196910,-2310.0173,0.00022569,2]
[313951339,1707851196930,-39463.8742,0.00022569,2]
[313951340,1707851196949,-321.6338,0.00022569,2]
[313951341,1707851196968,-509.5345,0.00022569,2]
[313951342,1707851196989,-18101.88478984,0.00022569,2]
[313951343,1707851201475,61.61268517,0.00021799,2]
[313951344,1707851201499,88.38731483,0.00021799,2]
[313951345,1707851202785,150.0,0.00022347,2]
[313951346,1707851204674,434.61611189,0.00021754,2]
[313951347,1707851204698,673.00342672,0.00021754,2]
[313951348,1707851204723,673.00342672,0.00021754,2]
[313951349,1707851204750,673.00342672,0.00021754,2]
[313951350,1707851204775,673.00342672,0.00021754,2]
[313951351,1707851204799,673.00342672,0.00021754,2]
[313951352,1707851204824,673.00342672,0.00021754,2]
[313951353,1707851204850,19427.36332779,0.00021754,2]
[313951354,1707851221099,400.0,0.000224,8]
[313951355,1707851223195,800.0,0.000225,8]
[313951356,1707851225297,1200.0,0.000226,8]
[313951357,1707851227747,1600.0,0.000227,8]
[313951358,1707851229217,588.8,0.00019819,2]
[313951359,1707851229435,588.8,0.00022082,2]
[313951360,1707851229518,2100.0,0.000228,8]
[313951361,1707851231649,400.0,0.000229,8]
[313951362,1707851238146,7237.7148,0.00022371,2]
[313951363,1707851267983,150.0,0.00021999,2]
[313951364,1707851289929,856.49,0.00021687,2]
[313951365,1707851289957,168.17,0.00022337,2]
[313951366,1707851333651,150.0,0.00021998,2]
[313951367,1707851343461,200.0,0.00021694,2]
[313951368,1707851343878,169.02,0.00021694,2]
[313951369,1707851365316,173.86,0.00021857,2]
[313951370,1707851365532,173.86,0.00021917,2]
[313951371,1707851365738,173.86,0.00021977,2]
[313951372,1707851365962,173.86,0.00022037,2]
[313951373,1707851366316,173.86,0.00022097,2]
[313951374,1707851366530,173.86,0.00022157,2]
[313951375,1707851366936,173.86,0.00022216,2]
[313951376,1707851367163,173.86,0.00022276,2]
[313951377,1707851367365,173.86,0.00022336,2]
[313951378,1707851367593,173.86,0.00022396,2]
[313951379,1707851371677,200.0,0.00021656,2]
[313951380,1707851387437,19130.0052,0.00022218,2]
[313951381,1707851387459,77286.37743033,0.00022218,2]
[313951382,1707851387813,-158.69422763,0.00022218,2]
[313951383,1707851388324,-150.0,0.00022218,2]
[313951384,1707851388717,-150.0,0.00022218,2]
[313951385,1707851389215,-150.0,0.00022218,2]
[313951386,1707851389722,-150.0,0.00022218,2]
[313951387,1707851390168,-150.0,0.00022218,2]
[313951388,1707851391050,-150.0,0.00022218,2]
[313951389,1707851391563,-150.0,0.00022218,2]
[313951390,1707851392006,-150.0,0.00022218,2]
[313951391,1707851392486,-150.0,0.00022218,2]
[313951392,1707851393033,-150.0,0.00022218,2]
[313951393,1707851393688,-150.0,0.00022218,2]
[313951394,1707851394131,-150.0,0.00022218,2]
[313951395,1707851394800,-150.0,0.00022218,2]
[313951396,1707851406565,150.0,0.00021569,2]
[313951408,1707851431631,-152.53829154,0.00022117,2]
[313951409,1707851431641,-3212.41570846,0.00022218,2]
[313951410,1707851431686,-139829.81141995,0.00022218,2]
[313951411,1707851431744,-16702.96992209,0.00022218,2]
[313951412,1707851431755,-1858.93303644,0.00022218,2]
[313951413,1707851431806,-212369.58540148,0.00022218,2]
[313951445,1707851437603,-3210.18055701,0.00022218,2]
[313951446,1707851437749,-2892.25123328,0.00022218,2]
[313951447,1707851437761,-744.6224438,0.00022218,2]
[313951448,1707851437773,-677.19349865,0.00022218,2]
[313951449,1707851437921,-1165.20393047,0.00022218,2]
[313951450,1707851437941,-67881.41547358,0.00022218,2]
[313951452,1707851437953,-450.0,0.00022218,2]
[313951454,1707851437966,-1943.29667571,0.00022218,2]
[313951455,1707851437986,-2432.9883331,0.00022218,2]
[313951456,1707851438001,-290.08119832,0.00022218,2]
[313951459,1707851438013,-4915.96560001,0.00022218,2]
[313951462,1707851438025,-587.673,0.00022218,2]
[313951467,1707851438041,-3704.77177377,0.00022218,2]
[313951492,1707851440198,-17467.35646938,0.00022218,2]
[313951493,1707851440256,-2959.64473179,0.00022218,2]
[313951494,1707851440377,-946.46753307,0.00022218,2]
[313951495,1707851440389,-279.71086282,0.00022218,2]
[313951590,1707851442647,-1721.02,0.00022218,2]
[313951593,1707851443075,-20.98481739,0.00022218,2]
[313951594,1707851443118,-2161.41852369,0.00022218,2]
[313951595,1707851443134,-2560.7667637,0.00022218,2]
[313951596,1707851443153,-344.96973992,0.00022218,2]
[313951597,1707851445588,-56790.22449416,0.00022218,2]
[313951598,1707851445597,-422.85917223,0.00022416,2]
[313951599,1707851445607,-659.571385,0.00022416,2]
[313951600,1707851445616,-173.86,0.00022456,2]
[313951601,1707851445625,-299.41085414,0.00022459,2]
[313951602,1707851445635,-183.92020066,0.00022469,2]
[313951603,1707851445645,-205.21073047,0.00022469,2]
[313951604,1707851445654,-31199.67746054,0.00022469,2]
[313951629,1707851446237,-688.606,0.00022469,2]
[313951658,1707851457416,207.0453,0.00022118,2]
[313951659,1707851458852,548.5123558,0.00022568,10]
[313951660,1707851474853,177.27,0.00022,2]
[313951661,1707851482132,150.0,0.00021669,2]
[313951662,1707851482157,150.0,0.00021669,2]
[313951663,1707851482176,200.0,0.00021669,2]
[313951664,1707851484587,258.56,0.00022,2]
[313951665,1707851486335,515.08,0.00022137,2]
[313951666,1707851520051,238.09,0.00021612,2]
[313951667,1707851523209,166.7,0.00021612,2]
[313951668,1707851524952,-303.87381504,0.00022233,2]
[313951669,1707851524972,-155.0,0.00022233,2]
[313951670,1707851524993,-141.12618496,0.00022234,2]
[313951671,1707851540576,167.02,0.00021622,2]
[313951672,1707851543309,150.0,0.000216,2]
[313951673,1707851553949,120.2347,0.00021236,2]
[313951674,1707851553972,85.7653,0.00021236,2]
[313951675,1707851554571,206.0,0.00024928,7]
[313951676,1707851575223,1914.2347,0.00022118,2]
[313951677,1707851575246,2000.0,0.00022118,2]
[313951678,1707851575267,2000.0,0.00022118,2]
[313951679,1707851575288,1185.0,0.00022118,2]
[313951680,1707851575309,1000.0,0.00022118,2]
[313951681,1707851617883,-174.05605689,0.00022018,2]
[313951682,1707851617905,-161.39054706,0.00022116,2]
[313951683,1707851617926,-264.55339605,0.00022117,2]
[313951684,1707851626062,1263.45,0.0002153,2]
[313951685,1707851646597,446.16,0.00021535,2]
[313951686,1707851698956,570.04,0.00019595,2]
[313951687,1707851699207,570.04,0.00021858,2]
[313951688,1707851700553,150.0,0.00021512,2]
[313951689,1707851700575,150.0,0.00021512,2]
[313951690,1707851700597,150.0,0.00021512,2]
[313951691,1707851700617,150.0,0.00021512,2]
[313951692,1707851700637,150.0,0.00021512,2]
[313951693,1707851700659,1250.0,0.00021512,2]
[313951694,1707851716928,693.3581149,0.00021535,5]
[313951695,1707851743488,2769.72,0.00021488,2]
[313951698,1707851780921,-303.87381504,0.00021914,2]
[313951699,1707851780942,-155.0,0.00021915,2]
[313951700,1707851788574,141.12618496,0.00021913,2]
[313951701,1707851842549,177.58,0.00021632,2]
[313951702,1707851842787,177.58,0.00021691,2]
[313951703,1707851843001,150.0,0.0002175,2]
[313951704,1707851843023,27.58,0.0002175,2]
[313951705,1707851843225,150.0,0.0002181,2]
[313951706,1707851843245,27.58,0.0002181,2]
[313951707,1707851843435,122.42,0.00021869,2]
[313951708,1707851843455,55.16,0.00021869,2]
[313951710,1707851867915,150.0,0.00021362,2]
[313951711,1707851867936,150.0,0.00021362,2]
[313951712,1707851867959,226.61577237,0.00021362,2]
[313951713,1707851867981,313.38422763,0.00021362,2]
[313951714,1707851888950,548.11607994,0.00021869,7]
[313951715,1707851898928,174.05605689,0.00021813,2]
[313951716,1707851938542,-528.0715305,0.0002191,2]
[313951717,1707851938562,-71.9284695,0.00021911,2]
[313951718,1707851974685,250.0,0.00021353,2]
[313951719,1707851994214,165.89351967,0.00021812,2]
[313951720,1707852089627,177.27,0.00021669,2]
[313951721,1707852103366,194.99,0.0002128,2]
[313951722,1707852146279,1052.87,0.00021293,2]
[313951723,1707852193630,2000.0,0.00021296,2]
[313951724,1707852244651,206.0,0.00021082,2]
[313951725,1707852247727,524.4,0.00019369,2]
[313951726,1707852247980,524.4,0.00021633,2]
[313951727,1707852258050,155.0,0.00021901,2]
[313951728,1707852317562,156.68,0.0002144,2]
[313951729,1707852317766,156.68,0.0002151,2]
[313951730,1707852317983,156.68,0.0002158,2]
[313951731,1707852318199,156.68,0.0002165,2]
[313951732,1707852318718,156.68,0.00021719,2]
[313951733,1707852318760,156.68,0.00021789,2]
[313951734,1707852318893,156.68,0.00021859,2]
[313951735,1707852344975,328.0,0.00021277,2]
[313951741,1707852526905,250.0,0.00021254,2]
[313951745,1707852569776,150.0,0.00021818,2]
[313951746,1707852569797,150.0,0.00021818,2]
[313951747,1707852569818,47.16119633,0.00021818,2]
[313951748,1707852574944,347.1611963,0.00021875,2]
[313951750,1707852593395,150.0,0.00021205,2]
[313951751,1707852593415,150.0,0.00021205,2]
[313951752,1707852593435,56.92,0.00021205,2]
[313951753,1707852603839,150.0,0.00021818,2]
[313951754,1707852604043,150.0,0.00021818,2]
[313951755,1707852604244,150.0,0.00021818,2]
[313951756,1707852604263,102.38757609,0.00021818,2]
[313951759,1707852624833,47.61242391,0.00021193,2]
[313951760,1707852624857,119.08757609,0.00021193,2]
[313951780,1707852631796,-303.87381504,0.00021911,2]
[313951781,1707852631805,-161.39054706,0.00021912,2]
[313951783,1707852631815,-6474.95492372,0.00021912,2]
[313951785,1707852631824,-158.98248848,0.00021913,5]
[313951786,1707852631856,-291.01751152,0.00021913,5]
[313951787,1707852631865,-250.0,0.00021918,2]
[313951788,1707852631875,-156.68,0.00021929,2]
[313951789,1707852631884,-347.1611963,0.00021932,2]
[313951790,1707852631893,-347.1611963,0.00021989,2]
[313951791,1707852631903,-156.68,0.00021999,2]
[313951792,1707852631912,-347.1611963,0.00022046,2]
[313951793,1707852631921,-246.99,0.00022046,2]
[313951794,1707852631930,-636.35,0.00022046,2]
[313951795,1707852631939,-286.29,0.00022046,2]
[313951796,1707852631948,-293.08,0.00022046,2]
[313951797,1707852631958,-13264.61,0.00022047,2]
[313951798,1707852631967,-272.72,0.00022047,2]
[313951799,1707852631976,-701.71,0.00022047,2]
[313951800,1707852631985,-156.68,0.00022069,2]
[313951801,1707852631995,-347.1611963,0.00022103,2]
[313951802,1707852632009,-206.0,0.0002213,2]
[313951803,1707852632019,-156.68,0.00022139,2]
[313951804,1707852632029,-308.0,0.00022142,2]
[313951805,1707852632039,-347.1611963,0.0002216,2]
[313951806,1707852632048,-409.44210918,0.00022166,2]
[313951807,1707852632058,-608.66439777,0.00022167,2]
[313951808,1707852632072,-79869.74926419,0.00022167,2]
[313951809,1707852632084,-19521.58633804,0.00022167,2]
[313951810,1707852632094,-5841.9863,0.00022167,2]
[313951811,1707852632104,-1000.0,0.00022168,2]
[313951812,1707852632113,-252.5456,0.00022168,2]
[313951813,1707852632123,-905.1208,0.00022168,2]
[313951814,1707852632133,-338.28733776,0.00022168,2]
[313951815,1707852632142,-156.68,0.00022208,2]
[313951816,1707852632154,-347.1611963,0.00022217,2]
[313951817,1707852632163,-343.24886258,0.00022217,2]
[313951818,1707852632173,-2442.6613,0.00022258,2]
[313951819,1707852632183,-356.92,0.00022266,2]
[313951820,1707852632193,-226921.55291666,0.00022267,2]
[313951821,1707852632209,-4469.49138075,0.00022267,2]
[313951822,1707852632222,-343.15377102,0.00022267,2]
[313951823,1707852632234,-1153.450029,0.00022267,2]
[313951824,1707852632256,-262.604331,0.00022267,2]
[313951825,1707852632271,-3074.77781111,0.00022267,2]
[313951826,1707852632284,-533.48102221,0.00022267,2]
[313951827,1707852632297,-101270.87923768,0.00022267,2]
[313951829,1707852637731,-456.58972056,0.00022267,2]
[313951841,1707852638275,-1914.184875,0.00022267,2]
[313951842,1707852638616,-668.50793059,0.00022267,2]
[313951843,1707852638627,-371.16041204,0.00022267,2]
[313951844,1707852638652,-98520.89521319,0.00022267,2]
[313951845,1707852638664,-6721.13279701,0.00022267,2]
[313951846,1707852638676,-1755.97691169,0.00022267,2]
[313951847,1707852638694,-280.0,0.00022267,2]
[313951850,1707852641037,-375.6832297,0.00022267,2]
[313951851,1707852641093,-321.83999,0.00022267,2]
[313951852,1707852641105,-735.1281336,0.00022267,2]
[313951853,1707852641256,-1387.38916446,0.00022267,2]
[313951873,1707852642786,-816.36621934,0.00022267,2]
[313951874,1707852642798,-423.99359811,0.00022267,2]
[313951875,1707852642914,-469.05510623,0.00022267,2]